bitfinex/quotes_SOLUSD_20250609
["timestamp","ask_amount","ask_price","bid_price","bid_amount"]
[1749465780737,9.61938619,155.12,155.07,6.44831035]
[1749465780927,9.61938619,155.08,155.05,18.64964886]
[1749465781115,9.61938619,155.07,155.02,18.64964886]
[1749465781316,9.61938619,155.07,155.02,28.26903505]
[1749465781530,9.61938619,155.07,155.04,18.64964886]
[1749465782336,45.89272065,155.12,155.04,34.71897299]
[1749465782337,9.61938619,155.08,155.04,34.71897299]
[1749465783620,41.08,155.12,155.05,9.61938619]
[1749465783824,9.61938619,155.09,155.05,9.61938619]
[1749465784241,9.61938619,155.08,155.04,34.71897299]
[1749465784618,9.61938619,155.07,155.04,25.0995868]
[1749465784818,4.81538954,155.11,155.04,34.71897299]
[1749465785020,9.61938619,155.08,155.04,34.71897299]
[1749465786851,9.61938619,155.06,155.04,18.64964886]
[1749465787363,9.61938619,155.07,155.03,18.79181043]
[1749465787552,9.61938619,155.08,155.03,28.41119662]
[1749465788522,9.61938619,155.07,155.03,18.79181043]
[1749465788933,9.61938619,155.07,155.02,6.45067394]
[1749465789142,9.61938619,155.07,155.03,18.64964886]
[1749465789667,9.61938619,155.07,155.03,25.09987605]
[1749465790350,9.61938619,155.04,155.02,18.64964886]
[1749465790572,9.61938619,155.06,155.02,18.64964886]
[1749465791135,9.61938619,155.07,155.03,0.14216157]
[1749465791363,12.7885,155.13,155.06,18.64964886]
[1749465791566,9.61938619,155.11,155.08,18.64964886]
[1749465791877,50.67938619,155.12,155.08,18.64964886]
[1749465792845,12.7885,155.13,155.08,18.64964886]
[1749465793046,9.61938619,155.12,155.08,28.26903505]
[1749465793249,12.7885,155.13,155.08,18.64964886]
[1749465793447,20.79938619,155.13,155.09,6.44786897]
[1749465793769,0.76,155.14,155.1,28.26903505]
[1749465795439,0.76,155.14,155.12,18.64964886]
[1749465796159,10.37938619,155.14,155.1,9.61938619]
[1749465796378,0.76,155.14,155.12,9.61938619]
[1749465796546,0.76,155.14,155.13,28.41119662]
[1749465797438,0.76,155.14,155.13,34.99956459]
[1749465809985,0.76,155.14,155.13,60.99956459]
[1749465810279,0.76,155.14,155.13,18.64964886]
[1749465810482,0.76,155.14,155.12,16.06595356]
[1749465810483,0.76,155.14,155.12,18.64964886]
[1749465810693,9.61938619,155.13,155.1,6.44741119]
[1749465810860,9.61938619,155.13,155.09,9.61938619]
[1749465810861,9.61938619,155.13,155.09,16.06711596]
[1749465811059,0.76,155.14,155.11,18.64964886]
[1749465811060,10.37938619,155.14,155.11,18.64964886]
[1749465811585,0.76,155.14,155.11,18.64964886]
[1749465811780,0.76,155.14,155.11,6.44697142]
[1749465812182,10.37938619,155.14,155.1,34.71633891]
[1749465812395,9.61938619,155.13,155.1,18.64964886]
[1749465812687,9.61938619,155.12,155.1,18.64964886]
[1749465813593,0.76,155.14,155.07,18.64964886]
[1749465813594,9.61938619,155.11,155.07,18.64964886]
[1749465813890,9.61938619,155.11,155.07,60.71770549]
[1749465814473,9.61938619,155.12,155.07,60.71770549]
[1749465814993,9.61938619,155.13,155.09,9.61938619]
[1749465816385,0.76,155.14,155.09,6.44786897]
[1749465816386,9.61938619,155.12,155.09,6.44786897]
[1749465816762,9.61938619,155.13,155.09,16.06725516]
[1749465817088,0.76,155.14,155.09,6.44786897]
[1749465817291,9.61938619,155.13,155.09,6.44786897]
[1749465817764,9.61938619,155.13,155.09,16.06725516]
[1749465818102,7.7733,155.15,155.09,16.06725516]
[1749465818395,7.7733,155.15,155.09,6.44786897]
[1749465818582,1.5275,155.15,155.11,18.64964886]
[1749465818783,11.14688619,155.15,155.11,28.26903505]
[1749465818995,38.49940878,155.19,155.13,9.61938619]
[1749465818996,1.5356,155.18,155.13,9.61938619]
[1749465819170,1.5356,155.18,155.15,18.64964886]
[1749465819372,10.37938619,155.2,155.16,9.61938619]
[1749465819776,9.61938619,155.19,155.15,28.26903505]
[1749465820093,10.37938619,155.2,155.15,18.64964886]
[1749465820294,9.61938619,155.19,155.15,28.26903505]
[1749465820605,9.61938619,155.19,155.16,6.44496004]
[1749465821798,0.76,155.2,155.16,6.44496004]
[1749465822001,9.61938619,155.19,155.16,6.44496004]
[1749465823399,0.76,155.2,155.16,6.44496004]
[1749465823605,10.37938619,155.2,155.16,16.06434623]
[1749465823992,9.61938619,155.19,155.16,6.44496004]
[1749465824783,0.76,155.2,155.16,6.44496004]
[1749465824978,9.61938619,155.19,155.16,6.44496004]
[1749465826298,0.76,155.2,155.17,18.64964886]
[1749465826474,10.37938619,155.2,155.16,6.44496004]
[1749465826680,9.61938619,155.19,155.16,6.44496004]
[1749465827614,0.76,155.2,155.16,6.44496004]
[1749465827778,9.61938619,155.19,155.16,6.44496004]
[1749465828209,10.37938619,155.2,155.16,16.06434623]
[1749465828509,0.76,155.2,155.16,16.06434623]
[1749465828722,0.76,155.2,155.18,9.61938619]
[1749465829003,0.76,155.2,155.19,54.55335819]
[1749465829191,20.49938619,155.26,155.2,18.79181043]
[1749465829370,20.49938619,155.26,155.19,54.55335819]
[1749465829371,9.61938619,155.23,155.19,26.0]
[1749465829571,6.44139555,155.25,155.19,32.44371016]
[1749465829808,9.61938619,155.23,155.19,42.06309635]
[1749465830603,9.61938619,155.23,155.15,35.61938619]
[1749465830604,9.61938619,155.2,155.15,35.61938619]
[1749465830902,40.96,155.23,155.16,18.64964886]
[1749465830903,9.61938619,155.19,155.16,18.64964886]
[1749465831084,9.61938619,155.19,155.15,18.79181043]
[1749465831685,9.61938619,155.19,155.12,18.64964886]
[1749465831686,40.94,155.18,155.12,18.64964886]
[1749465831876,9.61938619,155.14,155.12,18.64964886]
[1749465833724,9.61938619,155.14,155.12,25.09621448]
[1749465834226,9.61938619,155.15,155.12,25.09621448]
[1749465834531,9.61938619,155.16,155.12,25.09621448]
[1749465834836,9.61938619,155.14,155.1,26.28432314]
[1749465835032,9.61938619,155.11,155.05,11.12]
[1749465835331,9.61938619,155.11,155.08,18.64964886]
[1749465835699,40.94,155.13,155.08,18.64964886]
[1749465835700,9.61938619,155.1,155.08,18.64964886]
[1749465836110,9.61938619,155.1,155.08,25.09790588]
[1749465836300,40.94,155.13,155.08,25.09790588]
[1749465836518,9.61938619,155.11,155.08,25.09790588]
[1749465840830,9.61938619,155.1,155.08,25.09790588]
[1749465841010,40.94,155.13,155.08,25.09790588]
[1749465841206,9.61938619,155.11,155.08,25.09790588]
[1749465842525,9.61938619,155.12,155.09,0.14216157]
[1749465843923,9.61938619,155.12,155.09,0.28432314]
[1749465844123,50.55938619,155.13,155.09,0.28432314]
[1749465844831,9.61938619,155.12,155.11,18.64964886]
[1749465847441,9.61938619,155.12,155.09,0.28432314]
[1749465847442,6.44584429,155.14,155.08,25.38217355]
[1749465847642,9.61938619,155.12,155.08,34.85939817]
[1749465847838,9.61938619,155.11,155.08,25.24001198]
[1749465850348,6.44589563,155.14,155.08,25.24001198]
[1749465850546,9.61938619,155.11,155.08,25.24001198]
[1749465855331,9.61938619,155.12,155.08,25.24001198]
[1749465855528,20.71938619,155.14,155.1,28.41119662]
[1749465856654,42.5706,155.15,155.1,28.41119662]
[1749465856957,9.61938619,155.14,155.1,28.41119662]
[1749465857862,42.5706,155.15,155.11,6.44703758]
[1749465858171,9.61938619,155.14,155.11,6.44703758]
[1749465858346,9.61938619,155.13,155.11,6.44703758]
[1749465858665,9.61938619,155.12,155.1,6.58952376]
[1749465860032,9.61938619,155.11,155.09,6.44773421]
[1749465860249,9.61938619,155.1,155.08,18.64964886]
[1749465860454,6.44579727,155.14,155.07,6.44855021]
[1749465860455,9.61938619,155.09,155.07,6.44855021]
[1749465860655,9.61938619,155.08,155.06,6.44900945]
[1749465860855,9.61938619,155.09,155.07,18.64964886]
[1749465861164,40.9,155.11,155.07,18.64964886]
[1749465861330,9.61938619,155.09,155.07,18.64964886]
[1749465861736,40.9,155.11,155.05,25.09904819]
[1749465861737,9.61938619,155.08,155.05,25.09904819]
[1749465862041,9.61938619,155.07,155.05,25.09904819]
[1749465862832,58.44733005,155.11,155.04,32.44991818]
[1749465862833,9.61938619,155.06,155.04,32.44991818]
[1749465863138,9.61938619,155.05,155.02,18.64964886]
[1749465863455,9.61938619,155.04,155.01,6.45082016]
[1749465863856,40.9,155.07,155.01,6.45082016]
[1749465863857,9.61938619,155.03,155.01,6.45082016]
[1749465864062,9.61938619,155.02,155.0,25.10126176]
[1749465864264,9.61938619,155.03,155.0,25.10126176]
[1749465864877,11.06,155.05,155.0,50.8496802]
[1749465865036,9.61938619,155.04,155.0,50.8496802]
[1749465865445,1.5018,155.09,155.04,18.64964886]
[1749465865645,11.12118619,155.09,155.06,18.64964886]
[1749465866054,9.61938619,155.1,155.07,6.44870058]
[1749465866256,11.06,155.11,155.07,6.44870058]
[1749465866566,9.61938619,155.09,155.07,6.44870058]
[1749465867140,9.61938619,155.1,155.07,6.44870058]
[1749465868271,9.61938619,155.09,155.06,6.59127804]
[1749465868972,9.61938619,155.08,155.05,25.09902678]
[1749465871278,9.61938619,155.09,155.05,25.09902678]
[1749465871958,9.61938619,155.09,155.05,34.71841297]
[1749465872588,9.61938619,155.1,155.07,6.44870058]
[1749465873066,11.06,155.11,155.06,6.59113928]
[1749465873266,9.61938619,155.09,155.07,18.64964886]
[1749465874564,9.61938619,155.09,155.07,6.44859157]
[1749465875564,9.61938619,155.1,155.07,6.44859157]
[1749465875780,9.61938619,155.08,155.03,6.45036444]
[1749465876090,9.61938619,155.08,155.03,18.64964886]
[1749465876091,9.61938619,155.04,155.03,18.64964886]
[1749465876268,1.625,155.07,155.0,16.07099909]
[1749465876472,40.88,155.08,155.05,18.64964886]
[1749465876673,40.88,155.08,155.05,34.71825844]
[1749465877573,9.61938619,155.08,155.05,18.64964886]
[1749465877774,9.61938619,155.07,155.04,6.44981427]
[1749465878087,9.61938619,155.07,155.03,25.24206667]
[1749465878282,9.61938619,155.06,155.03,18.64964886]
[1749465878787,9.61938619,155.06,155.03,25.09987198]
[1749465879087,9.61938619,155.05,155.01,0.14216157]
[1749465879384,9.61938619,155.05,155.01,28.41119662]
[1749465879691,9.61938619,155.05,155.01,28.26903505]
[1749465880182,9.61938619,155.05,155.01,34.72010003]
[1749465881694,40.88,155.06,155.01,34.72010003]
[1749465881895,9.61938619,155.05,155.01,34.72010003]
[1749465882390,50.49938619,155.06,155.01,34.72010003]
[1749465882594,42.11638701,155.13,155.04,18.64964886]
[1749465882784,50.49938619,155.09,155.04,9.61938619]
[1749465882979,9.61938619,155.08,155.04,9.61938619]
[1749465883180,9.61938619,155.08,155.04,18.79181043]
[1749465883583,9.61938619,155.08,155.05,6.4495324]
[1749465883788,50.49938619,155.09,155.05,6.4495324]
[1749465886691,9.61938619,155.09,155.05,6.4495324]
[1749465886898,9.61938619,155.08,155.05,6.4495324]
[1749465887077,9.61938619,155.07,155.04,6.44994177]
[1749465888995,9.61938619,155.07,155.04,18.64964886]
[1749465889793,6.4479587,155.09,155.04,18.64964886]
[1749465889965,9.61938619,155.08,155.04,18.64964886]
[1749465890165,40.88,155.1,155.05,0.14216157]
[1749465890393,9.61938619,155.08,155.05,0.14216157]
[1749465890774,9.61938619,155.08,155.06,18.64964886]
[1749465890966,9.61938619,155.07,155.03,9.61938619]
[1749465891165,9.61938619,155.07,155.04,0.14216157]
[1749465891892,40.88,155.1,155.05,18.64964886]
[1749465892083,9.61938619,155.09,155.05,18.64964886]
[1749465892668,9.61938619,155.08,155.05,18.64964886]
[1749465893488,9.61938619,155.08,155.05,25.09912237]
[1749465895179,47.30748349,155.1,155.05,25.09912237]
[1749465895374,9.61938619,155.08,155.05,25.09912237]
[1749465898394,9.61938619,155.07,155.05,25.09912237]
[1749465898794,9.61938619,155.07,155.05,18.64964886]
[1749465899596,9.61938619,155.08,155.05,18.64964886]
[1749465900201,9.61938619,155.06,155.01,6.45119669]
[1749465900409,9.61938619,155.04,154.99,6.45202916]
[1749465900617,9.61938619,155.04,154.99,42.07141535]
[1749465900777,50.47938619,155.07,155.04,18.64964886]
[1749465901384,40.86,155.07,155.04,18.64964886]
[1749465901582,12.685,155.11,155.04,18.64964886]
[1749465901583,53.525,155.11,155.05,9.90370933]
[1749465901872,9.61938619,155.07,155.04,18.64964886]
[1749465902092,9.61938619,155.06,155.04,18.64964886]
[1749465902481,9.61938619,155.07,155.04,18.64964886]
[1749465902700,9.61938619,155.09,155.05,0.14216157]
[1749465902998,9.61938619,155.09,155.06,18.64964886]
[1749465903705,9.61938619,155.08,155.06,18.64964886]
[1749465904903,9.61938619,155.07,155.02,26.14216157]
[1749465905108,9.61938619,155.06,155.03,18.64964886]
[1749465906678,40.84,155.07,155.04,6.59210997]
[1749465907301,50.45938619,155.07,155.04,6.59210997]
[1749465908702,40.84,155.07,155.04,6.59210997]
[1749465908908,1.625,155.11,155.06,28.41119662]
[1749465909110,11.04,155.14,155.1,18.64964886]
[1749465909297,20.65938619,155.14,155.1,18.64964886]
[1749465910800,20.65938619,155.14,155.1,16.06653782]
[1749465910994,11.04,155.14,155.1,16.06653782]
[1749465911195,11.04,155.14,155.11,9.61938619]
[1749465911405,20.65938619,155.14,155.09,6.44773298]
[1749465911714,9.61938619,155.13,155.1,18.64964886]
[1749465911891,20.65938619,155.14,155.1,18.64964886]
[1749465913232,11.04,155.14,155.1,28.26903505]
[1749465913390,27.10519346,155.14,155.1,28.26903505]
[1749465913914,27.10519346,155.14,155.1,18.64964886]
[1749465914300,4.82446533,155.13,155.1,18.64964886]
[1749465914919,4.82446533,155.13,155.1,34.71644394]
[1749465915090,4.82446533,155.13,155.11,9.61938619]
[1749465915290,4.82446533,155.13,155.11,16.0662651]
[1749465915513,15.86446533,155.14,155.12,18.64964886]
[1749465917429,15.86446533,155.14,155.11,18.933972]
[1749465919005,14.44385152,155.13,155.08,18.79181043]
[1749465919209,9.61938619,155.1,155.03,19.2565]
[1749465919417,40.82,155.12,155.08,9.61938619]
[1749465919418,4.82446533,155.11,155.08,9.61938619]
[1749465919723,30.06715364,155.14,155.08,9.61938619]
[1749465919724,11.04,155.14,155.1,9.61938619]
[1749465920042,11.04,155.14,155.12,9.61938619]
[1749465920223,4.82126725,155.15,155.13,9.61938619]
[1749465920418,45.64126725,155.17,155.14,9.61938619]
[1749465920615,4.82126725,155.16,155.13,28.26903505]
[1749465920928,4.82126725,155.16,155.11,6.44687377]
[1749465920929,4.82126725,155.15,155.11,9.61938619]
[1749465921231,4.82126725,155.14,155.11,28.26903505]
[1749465921522,4.82126725,155.15,155.11,28.26903505]
[1749465921821,4.82126725,155.14,155.11,28.26903505]
[1749465922020,4.82126725,155.15,155.11,28.26903505]
[1749465922220,4.82126725,155.14,155.11,28.26903505]
[1749465922526,11.26684089,155.15,155.11,28.26903505]
[1749465922698,20.88622708,155.15,155.11,28.26903505]
[1749465922895,11.26684089,155.15,155.12,9.61938619]
[1749465923122,4.82126725,155.15,155.13,28.26903505]
[1749465923329,104.64077402,155.18,155.14,9.61938619]
[1749465923330,4.82126725,155.17,155.14,9.61938619]
[1749465923502,4.82126725,155.16,155.14,9.61938619]
[1749465923796,4.82126725,155.17,155.14,9.61938619]
[1749465924002,4.82126725,155.16,155.14,9.61938619]
[1749465924197,4.82126725,155.17,155.14,9.61938619]
[1749465924400,4.82126725,155.17,155.15,28.26903505]
[1749465924608,4.82126725,155.18,155.16,9.61938619]
[1749465924810,2.0,155.19,155.17,28.26903505]
[1749465925020,6.82126725,155.19,155.17,28.26903505]
[1749465925213,2.0,155.19,155.17,28.26903505]
[1749465926020,2.0,155.19,155.18,9.61938619]
[1749465926296,2.0,155.19,155.17,28.26903505]
[1749465926505,2.0,155.19,155.17,18.64964886]
[1749465926730,2.0,155.19,155.17,28.26903505]
[1749465927720,2.0,155.19,155.09,6.5811]
[1749465927721,16.06358357,155.18,155.09,6.5811]
[1749465928023,16.06358357,155.18,155.11,0.28432314]
[1749465928024,9.61938619,155.15,155.11,0.28432314]
[1749465928808,9.61938619,155.15,155.1,34.71608625]
[1749465929010,9.61938619,155.15,155.1,25.09670006]
[1749465929211,9.61938619,155.14,155.11,0.28432314]
[1749465929513,8.02709738,155.18,155.11,0.28432314]
[1749465929514,9.61938619,155.15,155.11,0.28432314]
[1749465929912,6.4445582,155.17,155.12,18.64964886]
[1749465930119,11.61938619,155.19,155.14,9.61938619]
[1749465930305,2.0,155.19,155.15,0.28432314]
[1749465930510,11.61938619,155.19,155.15,0.28432314]
[1749465930708,11.61938619,155.19,155.16,18.64964886]
[1749465931303,11.61938619,155.19,155.16,25.09450079]
[1749465931512,2.0,155.19,155.16,25.09450079]
[1749465932619,2.0,155.19,155.16,34.71388698]
[1749465935735,2.0,155.19,155.15,6.72956887]
[1749465935924,11.61938619,155.19,155.16,18.64964886]
[1749465936721,2.0,155.19,155.16,18.64964886]
[1749465936927,11.61938619,155.19,155.16,18.64964886]
[1749465938014,11.61938619,155.19,155.15,0.28432314]
[1749465938438,11.61938619,155.19,155.16,18.64964886]
[1749465938614,2.0,155.19,155.16,28.26903505]
[1749465939151,2.0,155.19,155.18,18.64964886]
[1749465939335,2.0,155.19,155.18,9.90370933]
[1749465940019,2.0,155.19,155.18,16.34783872]
[1749465941140,2.0,155.19,155.18,6.72845253]
[1749465941356,2.0,155.19,155.18,16.34783872]
[1749465943712,2.0,155.19,155.18,60.99748758]
[1749465946374,2.0,155.19,155.18,25.09377825]
[1749465946672,2.0,155.19,155.17,9.61938619]
[1749465946874,2.0,155.19,155.18,35.61938619]
[1749465947063,2.0,155.19,155.18,54.55335819]
[1749465948249,2.0,155.19,155.18,60.99748758]
[1749465948560,2.0,155.19,155.18,60.85532601]
[1749465948877,2.0,155.19,155.18,18.79181043]
[1749465949072,2.0,155.19,155.18,18.64964886]
[1749465950271,11.61938619,155.19,155.15,6.44523316]
[1749465950465,11.61938619,155.19,155.16,18.64964886]
[1749465950663,2.0,155.19,155.16,28.26903505]
[1749465951176,2.0,155.19,155.18,18.79181043]
[1749465951357,2.0,155.19,155.18,54.55335819]
[1749465952366,2.0,155.19,155.18,60.99748758]
[1749465954761,2.0,155.19,155.18,101.73748758]
[1749465955081,2.0,155.19,155.18,92.11810139]
[1749465955382,2.0,155.19,155.18,60.99748758]
[1749465956172,2.0,155.19,155.18,60.71316444]
[1749465956557,2.0,155.19,155.18,18.64964886]
[1749465957578,2.0,155.19,155.18,25.09377825]
[1749465957781,2.0,155.19,155.18,18.64964886]
[1749465958287,2.0,155.19,155.18,25.09377825]
[1749465958599,2.0,155.19,155.18,18.64964886]
[1749465959089,2.0,155.19,155.18,34.99748758]
[1749465959398,2.0,155.19,155.18,60.99748758]
[1749465961268,2.0,155.19,155.18,51.37810139]
[1749465961667,2.0,155.19,155.18,60.71316444]
[1749465962070,2.0,155.19,155.18,60.99748758]
[1749465962366,2.0,155.19,155.18,34.99748758]
[1749465963987,1.5362,155.27,155.22,44.64964886]
[1749465964282,11.15558619,155.27,155.23,18.64964886]
[1749465964876,11.15558619,155.27,155.23,28.26903505]
[1749465965569,1.5362,155.27,155.23,34.71078284]
[1749465966192,1.5362,155.27,155.21,0.28432314]
[1749465966193,9.61938619,155.25,155.21,18.64964886]
[1749465966377,40.72,155.26,155.22,9.61938619]
[1749465966572,40.72,155.26,155.24,18.64964886]
[1749465966775,40.72,155.26,155.22,0.28432314]
[1749465966976,21.19506889,155.29,155.25,28.26903505]
[1749465967179,25.99569447,155.29,155.25,28.26903505]
[1749465967370,21.19506889,155.29,155.25,18.64964886]
[1749465967571,5.39630828,155.29,155.26,34.70971168]
[1749465967774,0.5956827,155.29,155.26,34.70971168]
[1749465967971,0.5956827,155.29,155.27,9.61938619]
[1749465968395,0.5956827,155.29,155.26,25.09032549]
[1749465968396,0.5956827,155.29,155.26,34.70971168]
[1749465969188,0.5956827,155.29,155.27,9.61938619]
[1749465970174,0.5956827,155.29,155.27,16.05943824]
[1749465971493,0.5956827,155.29,155.26,6.44071594]
[1749465971684,0.5956827,155.29,155.26,18.64964886]
[1749465972295,0.5956827,155.29,155.27,6.44039415]
[1749465972467,0.5956827,155.29,155.27,16.05978034]
[1749465972889,0.5956827,155.29,155.26,16.06003206]
[1749465975067,0.5956827,155.29,155.27,9.61938619]
[1749465975301,0.5956827,155.29,155.26,16.06003206]
[1749465976498,0.5956827,155.29,155.26,6.44064587]
[1749465976682,0.5956827,155.29,155.26,16.06003206]
[1749465977789,0.5956827,155.29,155.26,9.61938619]
[1749465978101,0.5956827,155.29,155.26,16.06013403]
[1749465978804,0.5956827,155.29,155.27,9.61938619]
[1749465980494,0.5956827,155.29,155.28,18.64964886]
[1749465980895,0.5956827,155.29,155.28,25.08962825]
[1749465981411,0.5956827,155.29,155.27,18.64964886]
[1749465981612,0.5956827,155.29,155.26,18.64964886]
[1749465982416,10.21506889,155.29,155.26,18.64964886]
[1749465982904,10.21506889,155.29,155.26,25.0903887]
[1749465983089,0.5956827,155.29,155.26,25.0903887]
[1749465983481,0.5956827,155.29,155.26,34.70977489]
[1749465983917,0.5956827,155.29,155.26,18.64964886]
[1749465984720,0.5956827,155.29,155.26,25.09041041]
[1749465985989,0.5956827,155.29,155.26,34.7097966]
[1749465986191,0.5956827,155.29,155.26,9.61938619]
[1749465986916,9.61938619,155.27,155.23,18.64964886]
[1749465987219,40.68,155.28,155.24,9.61938619]
[1749465988023,40.68,155.28,155.27,9.61938619]
[1749465988202,40.68,155.28,155.27,16.05978034]
[1749465988400,0.5956827,155.29,155.27,16.05978034]
[1749465990723,0.5956827,155.29,155.27,6.44039415]
[1749465991023,0.5956827,155.29,155.26,9.61938619]
[1749465992001,0.5956827,155.29,155.26,16.05998331]
[1749465994530,0.5956827,155.29,155.27,9.61938619]
[1749465995302,0.5956827,155.29,155.28,18.64964886]
[1749465995832,0.5956827,155.29,155.28,9.61938619]
[1749465996035,0.5956827,155.29,155.28,18.64964886]
[1749465996232,0.5956827,155.29,155.28,28.26903505]
[1749465996420,0.5956827,155.29,155.28,25.08962825]
[1749465998724,0.5956827,155.29,155.26,16.06019515]
[1749465998916,0.5956827,155.29,155.27,9.61938619]
[1749466000727,0.5956827,155.29,155.27,16.05969642]
[1749466001528,0.5956827,155.29,155.27,6.44031023]
[1749466002515,0.5956827,155.29,155.27,16.05969642]
[1749466003135,0.5956827,155.29,155.28,18.64964886]
[1749466003354,0.5956827,155.29,155.28,28.26903505]
[1749466003531,0.5956827,155.29,155.28,28.55335819]
[1749466004115,9.61938619,155.33,155.29,9.61938619]
[1749466004424,9.61938619,155.33,155.3,6.43915003]
[1749466005027,6.43707925,155.35,155.3,6.43915003]
[1749466005353,9.61938619,155.34,155.3,6.43915003]
[1749466006438,17.37667552,155.36,155.3,6.43915003]
[1749466006833,9.61938619,155.35,155.31,28.26903505]
[1749466007043,9.61938619,155.35,155.31,18.64964886]
[1749466007233,9.61938619,155.34,155.31,18.64964886]
[1749466008252,9.61938619,155.35,155.31,18.64964886]
[1749466008748,9.61938619,155.35,155.32,6.43832088]
[1749466008926,9.61938619,155.35,155.31,34.7076154]
[1749466009243,9.61938619,155.35,155.31,18.64964886]
[1749466009446,16.05647227,155.35,155.31,18.64964886]
[1749466009748,9.61938619,155.35,155.31,25.08823675]
[1749466009952,9.61938619,155.35,155.31,34.70762294]
[1749466010179,10.94,155.36,155.31,34.70762294]
[1749466010356,9.61938619,155.35,155.31,34.70762294]
[1749466010661,20.55938619,155.36,155.31,34.70762294]
[1749466011137,20.55938619,155.36,155.32,9.61938619]
[1749466012551,10.94,155.36,155.31,34.70762294]
[1749466012748,10.94,155.36,155.33,6.43790639]
[1749466012958,20.55938619,155.36,155.32,9.61938619]
[1749466013159,20.55938619,155.36,155.32,6.4381569]
[1749466014948,26.0,155.41,155.34,9.61938619]
[1749466015135,6.4349155,155.41,155.35,18.64964886]
[1749466015339,9.61938619,155.39,155.35,18.64964886]
[1749466015836,9.61938619,155.38,155.34,0.28432314]
[1749466016044,9.61938619,155.39,155.35,18.64964886]
[1749466016555,6.4349155,155.41,155.35,18.64964886]
[1749466016855,6.4349155,155.41,155.35,9.61938619]
[1749466017063,9.61938619,155.39,155.35,16.05614475]
[1749466017679,9.61938619,155.38,155.34,16.34109134]
[1749466018027,6.4349155,155.41,155.35,9.61938619]
[1749466018258,9.61938619,155.39,155.35,9.61938619]
[1749466018859,9.61938619,155.39,155.35,16.05637077]
[1749466021062,26.0,155.42,155.37,28.26903505]
[1749466021236,9.61938619,155.41,155.37,28.26903505]
[1749466021437,32.43423988,155.42,155.37,18.64964886]
[1749466021643,9.61938619,155.4,155.37,18.64964886]
[1749466022146,9.61938619,155.4,155.35,16.34069391]
[1749466022147,9.61938619,155.4,155.36,0.28432314]
[1749466022541,9.61938619,155.4,155.37,18.64964886]
[1749466024556,9.61938619,155.4,155.37,25.08587643]
[1749466025741,9.61938619,155.4,155.37,18.64964886]
[1749466026451,9.61938619,155.39,155.37,18.64964886]
[1749466026966,9.61938619,155.4,155.37,25.08577617]
[1749466027352,32.43433489,155.42,155.37,25.08577617]
[1749466027555,7.93510007,155.43,155.37,6.43612731]
[1749466027770,9.61938619,155.4,155.37,25.08577617]
[1749466028074,9.61938619,155.4,155.37,18.64964886]
[1749466028643,9.61938619,155.4,155.37,25.08589121]
[1749466029577,9.61938619,155.4,155.38,25.085413]
[1749466029879,7.93496637,155.43,155.38,25.085413]
[1749466030178,9.61938619,155.41,155.38,25.085413]
[1749466030958,36.9,155.44,155.38,34.70479919]
[1749466031153,0.7,155.46,155.39,0.28432314]
[1749466031455,9.61938619,155.43,155.4,18.64964886]
[1749466031770,26.7,155.46,155.41,6.43459236]
[1749466031977,9.61938619,155.43,155.41,6.43459236]
[1749466032880,9.61938619,155.43,155.4,25.08455686]
[1749466033067,33.13253035,155.46,155.4,25.08455686]
[1749466033855,9.61938619,155.43,155.4,25.08455686]
[1749466034051,33.13258014,155.46,155.4,25.08455686]
[1749466034262,9.61938619,155.43,155.4,25.08455686]
[1749466034474,9.61938619,155.43,155.4,18.64964886]
[1749466034974,9.61938619,155.42,155.4,18.64964886]
[1749466035154,9.61938619,155.41,155.36,18.79181043]
[1749466035350,9.61938619,155.41,155.37,9.61938619]
[1749466035552,9.61938619,155.41,155.36,18.64964886]
[1749466035752,9.61938619,155.41,155.37,9.61938619]
[1749466036582,9.61938619,155.41,155.36,18.64964886]
[1749466036583,9.61938619,155.4,155.36,18.64964886]
[1749466036758,9.61938619,155.4,155.36,28.26903505]
[1749466037649,6.43470673,155.41,155.36,25.08620872]
[1749466037850,9.61938619,155.4,155.36,25.08620872]
[1749466038159,0.7,155.46,155.38,18.64964886]
[1749466038474,9.61938619,155.42,155.38,18.64964886]
[1749466038784,9.61938619,155.42,155.39,0.28432314]
[1749466039278,9.61938619,155.42,155.37,18.64964886]
[1749466039472,9.61938619,155.42,155.38,0.28432314]
[1749466039967,9.61938619,155.42,155.38,9.90370933]
[1749466040585,44.03266362,155.46,155.4,18.64964886]
[1749466040759,9.61938619,155.44,155.4,18.64964886]
[1749466040966,9.61938619,155.43,155.4,18.64964886]
[1749466042372,9.61938619,155.43,155.4,25.08463286]
[1749466043187,44.03266362,155.46,155.4,25.08463286]
[1749466043357,9.61938619,155.45,155.4,34.70401905]
[1749466043688,9.61938619,155.45,155.42,18.64964886]
[1749466043851,11.6,155.46,155.42,18.64964886]
[1749466043852,0.7,155.46,155.42,18.64964886]